bitfinex-derivatives/quotes_SOLF0:USTF0_20241231
["timestamp","ask_amount","ask_price","bid_price","bid_amount"]
[1735655147686,7.8701596,197.77,197.76,2.5317]
[1735655152685,7.8701596,197.81,197.72,286.07783265]
[1735655153088,7.8701596,197.81,197.74,7.8701596]
[1735655153985,7.8701596,197.81,197.75,3.82507996]
[1735655154586,5.6507,197.84,197.8,2.531]
[1735655154784,7.8701596,197.81,197.8,2.531]
[1735655155494,7.8701596,197.81,197.75,278.20767305]
[1735655155694,7.8701596,197.81,197.79,2.5313]
[1735655155993,7.8701596,197.81,197.75,278.20767305]
[1735655156194,7.8701596,197.77,197.76,2.5316]
[1735655156399,3.12,197.85,197.76,2.5316]
[1735655156400,7.8701596,197.79,197.76,2.5316]
[1735655157498,7.8701596,197.79,197.77,2.5315]
[1735655160301,7.8701596,197.79,197.73,6.84027305]
[1735655160505,7.8701596,197.76,197.73,6.84027305]
[1735655160697,7.8701596,197.76,197.74,2.5318]
[1735655160907,7.8701596,197.76,197.73,6.84027305]
[1735655161105,7.8701596,197.76,197.71,6.84027305]
[1735655162006,7.8701596,197.78,197.76,2.5316]
[1735655162307,7.8701596,197.78,197.72,7.8701596]
[1735655162604,7.8701596,197.78,197.76,2.5316]
[1735655163202,7.8701596,197.78,197.77,2.5316]
[1735655164400,7.8701596,197.78,197.72,27.36109221]
[1735655164600,7.8701596,197.76,197.72,27.36109221]
[1735655164996,7.8701596,197.78,197.72,27.36109221]
[1735655165608,7.8701596,197.78,197.72,6.84027305]
[1735655166009,7.8701596,197.78,197.73,2.532]
[1735655166207,7.8701596,197.78,197.72,6.84027305]
[1735655166404,7.8701596,197.76,197.73,3.82346847]
[1735655166912,7.8701596,197.74,197.73,3.82346847]
[1735655167303,3.12,197.75,197.73,3.82346847]
[1735655167500,10.4020596,197.74,197.69,27.36109221]
[1735655167705,7.8701596,197.71,197.69,27.36109221]
[1735655167922,7.8701596,197.71,197.69,29.89359221]
[1735655168311,7.8701596,197.71,197.69,2.5325]
[1735655170420,7.8701596,197.71,197.7,2.5324]
[1735655170709,7.8701596,197.71,197.65,27.36109221]
[1735655170908,2.5316,197.77,197.66,7.8701596]
[1735655171106,7.8701596,197.78,197.7,7.8701596]
[1735655171302,7.8701596,197.8,197.72,279.2375596]
[1735655171505,9.16,197.88,197.74,7.8701596]
[1735655171710,7.8701596,197.81,197.79,2.5312]
[1735655171906,7.8701596,197.81,197.74,7.8701596]
[1735655172113,7.8701596,197.82,197.74,7.8701596]
[1735655172311,7.8701596,197.82,197.81,2.531]
[1735655173913,3.12,197.84,197.82,2.5309]
[1735655174110,5.6504,197.86,197.82,2.5309]
[1735655175015,2.5304,197.86,197.82,2.5309]
[1735655175216,3.14,197.85,197.82,2.5309]
[1735655175410,7.8701596,197.83,197.82,2.5309]
[1735655176320,7.8701596,197.83,197.8,2.5311]
[1735655176610,3.14,197.86,197.76,271.3674]
[1735655176811,66.45001001,197.9,197.8,279.2375596]
[1735655177016,74.32016961,197.9,197.89,2.53]
[1735655177210,66.45001001,197.9,197.89,2.53]
[1735655177410,7.8701596,197.92,197.91,2.5298]
[1735655177716,10.70923348,197.93,197.86,7.8701596]
[1735655178020,7.8701596,197.92,197.91,2.5297]
[1735655178616,3.14,197.96,197.86,279.2375596]
[1735655178821,7.8701596,197.94,197.92,2.5296]
[1735655179123,7.8701596,197.94,197.88,7.8701596]
[1735655179310,7.8701596,197.94,197.93,2.5295]
[1735655179517,2.5289,197.98,197.93,2.5295]
[1735655179730,7.8701596,197.96,197.88,11.0101596]
[1735655180337,7.8701596,197.92,197.83,3.14]
[1735655180527,7.8701596,197.88,197.84,2.5307]
[1735655180727,7.8701596,197.88,197.82,7.8701596]
[1735655180927,7.8701596,197.86,197.81,281.34767305]
[1735655181139,7.8701596,197.86,197.83,2.5308]
[1735655181428,7.8701596,197.86,197.81,274.5074]
[1735655181822,7.8701596,197.86,197.78,288.2710596]
[1735655182029,7.8701596,197.84,197.78,16.9036596]
[1735655182438,7.8701596,197.86,197.78,288.2710596]
[1735655182932,7.8701596,197.86,197.81,2.531]
[1735655183132,7.8701596,197.84,197.76,271.3674]
[1735655183339,7.8701596,197.82,197.76,271.3674]
[1735655183529,7.8701596,197.82,197.75,7.8701596]
[1735655183730,7.8701596,197.8,197.74,271.3674]
[1735655183936,7.8701596,197.78,197.72,286.07783265]
[1735655184129,7.8701596,197.76,197.72,280.73977305]
[1735655184330,15.43706662,197.79,197.72,271.3674]
[1735655184729,3.14,197.79,197.74,2.5318]
[1735655185032,3.14,197.79,197.72,271.3674]
[1735655185226,17.96836662,197.79,197.73,2.5321]
[1735655186933,15.43706662,197.79,197.75,2.5317]
[1735655187128,3.14,197.79,197.69,274.5074]
[1735655187737,3.14,197.79,197.76,2.5316]
[1735655187935,3.14,197.79,197.69,274.5074]
[1735655188438,3.0375,197.81,197.77,2.5315]
[1735655188637,3.0375,197.81,197.69,274.5074]
[1735655189838,3.0375,197.81,197.76,2.5316]
[1735655191438,12.29706662,197.82,197.69,274.5074]
[1735655191638,12.29706662,197.82,197.77,2.5315]
[1735655192142,15.43706662,197.85,197.71,283.66446662]
[1735655192339,12.29706662,197.85,197.74,12.29706662]
[1735655192545,2.9362,197.87,197.75,3.14]
[1735655192937,2.9362,197.87,197.75,274.5074]
[1735655193638,2.9362,197.87,197.83,2.5308]
[1735655195241,6.1025,197.89,197.86,2.5304]
[1735655195444,14.82686662,197.91,197.8,3.14]
[1735655195641,12.29706662,197.91,197.8,3.14]
[1735655195842,12.29706662,197.91,197.88,2.53]
[1735655196042,12.29706662,197.91,197.8,286.80446662]
[1735655197335,14.82646662,197.94,197.8,286.80446662]
[1735655197540,14.82646662,197.94,197.88,2.53]
[1735655197849,14.82646662,197.94,197.8,286.80446662]
[1735655197850,12.29706662,197.94,197.8,286.80446662]
[1735655198046,12.29706662,197.91,197.8,274.5074]
[1735655198344,12.29706662,197.91,197.84,2.5306]
[1735655198538,2.5299,197.9,197.8,274.5074]
[1735655199448,2.5299,197.9,197.85,2.5305]
[1735655200448,12.29706662,197.91,197.8,274.5074]
[1735655200643,14.82686662,197.91,197.86,2.5304]
[1735655200839,12.29706662,197.91,197.8,286.80446662]
[1735655201648,12.29706662,197.91,197.87,2.5302]
[1735655201851,12.29706662,197.94,197.8,286.80446662]
[1735655202056,15.25246662,197.97,197.83,12.29706662]
[1735655202349,18.39246662,197.97,197.91,2.5297]
[1735655202543,20.92156662,197.97,197.91,2.5297]
[1735655202742,15.25246662,197.97,197.91,2.5297]
[1735655203150,18.39246662,197.97,197.86,3.14]
[1735655203755,2.5294,197.94,197.86,3.14]
[1735655204048,12.29706662,197.94,197.86,3.14]
[1735655204439,14.82656662,197.94,197.89,2.53]
[1735655205452,12.29706662,197.94,197.86,3.14]
[1735655205745,14.82646662,197.94,197.89,2.5299]
[1735655206846,12.29706662,197.94,197.86,3.14]
[1735655207052,2.5295,197.93,197.88,2.5301]
[1735655207440,12.29706662,197.94,197.84,280.4504]
[1735655207643,12.29706662,197.94,197.84,271.3674]
[1735655207952,12.29706662,197.91,197.84,271.3674]
[1735655208146,2.53,197.9,197.85,2.5305]
[1735655210254,2.53,197.9,197.84,271.3674]
[1735655210449,2.53,197.9,197.86,2.5304]
[1735655211448,12.29706662,197.91,197.87,2.5302]
[1735655211657,12.29706662,197.91,197.81,274.5074]
[1735655212256,14.82686662,197.91,197.81,274.5074]
[1735655212864,15.43706662,197.91,197.81,271.3674]
[1735655213059,12.29706662,197.88,197.81,271.3674]
[1735655213460,2.5304,197.87,197.82,2.5308]
[1735655213660,12.29706662,197.88,197.79,271.3674]
[1735655214060,2.5306,197.85,197.81,2.531]
[1735655214264,12.29706662,197.88,197.81,2.531]
[1735655214565,2.5303,197.87,197.79,271.3674]
[1735655214761,12.29706662,197.88,197.79,271.3674]
[1735655215463,14.82736662,197.88,197.79,271.3674]
[1735655216067,14.82736662,197.88,197.83,2.5307]
[1735655216288,12.29706662,197.88,197.79,271.3674]
[1735655216956,2.5303,197.87,197.83,2.5308]
[1735655217764,12.29706662,197.88,197.79,271.3674]
[1735655217963,12.29706662,197.88,197.84,2.5306]
[1735655219170,12.29706662,197.88,197.79,271.3674]
[1735655219767,14.82726662,197.88,197.83,2.5307]
[1735655220367,7.86226502,197.85,197.83,2.5307]
[1735655220562,7.86226502,197.85,197.84,2.5307]
[1735655221363,3.1193,197.9,197.79,279.22966502]
[1735655221665,7.86226502,197.88,197.81,7.86226502]
[1735655221970,7.86226502,197.88,197.82,3.14]
[1735655222170,7.86226502,197.88,197.87,2.5303]
[1735655223466,7.86226502,197.88,197.86,2.5304]
[1735655223667,7.86226502,197.88,197.82,271.3674]
[1735655223860,7.86226502,197.84,197.82,271.3674]
[1735655224579,7.86226502,197.84,197.83,2.5307]
[1735655225473,7.86226502,197.86,197.82,271.3674]
[1735655225769,7.86226502,197.86,197.85,2.5304]
[1735655226167,2.53,197.9,197.86,2.5304]
[1735655226387,14.81145792,197.9,197.86,2.5304]
[1735655226566,14.81145792,197.9,197.79,274.5074]
[1735655226567,12.28145792,197.9,197.79,274.5074]
[1735655226766,12.28145792,197.9,197.87,2.5302]
[1735655226969,12.28145792,197.9,197.79,281.34767305]
[1735655227368,12.28145792,197.9,197.88,2.5301]
[1735655230470,12.28145792,197.9,197.81,278.20767305]
[1735655231875,12.28145792,197.9,197.87,2.5302]
[1735655232582,12.28145792,197.9,197.88,2.5301]
[1735655232773,12.28145792,197.9,197.81,278.20767305]
[1735655233975,12.28145792,197.9,197.83,2.5307]
[1735655234174,12.28145792,197.9,197.81,278.20767305]
[1735655235179,12.28145792,197.9,197.87,2.5302]
[1735655235473,12.28145792,197.9,197.89,2.53]
[1735655235675,12.28145792,197.9,197.82,317.73250659]
[1735655235676,12.28145792,197.93,197.84,3.12]
[1735655237177,12.28145792,197.93,197.84,9.96027305]
[1735655237788,12.28145792,197.9,197.84,281.32767305]
[1735655237970,12.28145792,197.9,197.86,2.5303]
[1735655238381,12.28145792,197.9,197.84,281.32767305]
[1735655238586,12.28145792,197.9,197.87,2.5302]
[1735655239978,12.28145792,197.9,197.84,271.3674]
[1735655240275,12.28145792,197.93,197.84,271.3674]
[1735655240676,12.28145792,197.93,197.9,2.5298]
[1735655243184,12.28145792,197.93,197.89,2.53]
[1735655243683,14.81105792,197.93,197.89,2.53]
[1735655243880,12.28145792,197.9,197.84,271.3674]
[1735655244179,14.81135792,197.9,197.84,271.3674]
[1735655244481,12.28145792,197.9,197.84,271.3674]
[1735655245093,12.28145792,197.9,197.87,2.5302]
[1735655245581,12.28145792,197.9,197.84,271.3674]
[1735655245982,12.28145792,197.9,197.89,2.53]
[1735655247484,12.28145792,197.9,197.87,2.5302]
[1735655248286,7.86061595,197.88,197.84,271.3674]
[1735655248487,7.86061595,197.86,197.85,2.5305]
[1735655248988,7.86061595,197.88,197.87,2.5303]
[1735655253100,2.5293,197.95,197.91,2.5297]
[1735655253299,7.86061595,197.92,197.91,2.5297]
[1735655255497,7.86061595,197.92,197.91,273.8971]
[1735655259495,7.86061595,197.92,197.91,2.5297]
[1735655260301,7.86061595,197.92,197.88,271.3674]
[1735655260499,7.86061595,197.9,197.89,2.53]
[1735655265709,7.86061595,197.9,197.89,273.8974]
[1735655271505,7.86061595,197.9,197.89,2.53]
[1735655271808,7.86061595,197.9,197.88,2.5301]
[1735655272016,7.86061595,197.89,197.88,2.5301]
[1735655274108,7.86061595,197.9,197.88,2.5301]
[1735655275406,7.86061595,197.9,197.85,281.28767305]
[1735655275610,2.5296,197.93,197.88,2.5301]
[1735655276002,7.86061595,197.89,197.88,2.5301]
[1735655277415,7.86061595,197.92,197.91,2.5297]
[1735655277707,7.86061595,197.92,197.86,271.3674]
[1735655278113,3.08,197.98,197.9,2.5298]
[1735655278506,2.5297,197.92,197.87,2.5302]
[1735655278710,2.5297,197.92,197.87,46.36902416]
[1735655278911,3.08,197.98,197.87,46.36902416]
[1735655279521,2.5296,197.93,197.88,2.5301]
[1735655279711,2.5296,197.93,197.87,6.84027305]
[1735655279712,7.86061595,197.9,197.87,6.84027305]
[1735655280815,7.86061595,197.9,197.89,2.53]
[1735655281151,7.86061595,197.9,197.86,6.84027305]
[1735655281317,3.08,197.98,197.86,6.84027305]
[1735655281318,7.86061595,197.88,197.86,6.84027305]
[1735655281507,7.86061595,197.9,197.86,6.84027305]
[1735655281714,7.86061595,197.9,197.87,2.5302]
[1735655282316,7.86061595,197.9,197.88,2.53]
[1735655283119,7.86061595,197.9,197.85,30.44109221]
[1735655283418,7.86061595,197.9,197.89,2.53]
[1735655284619,7.86061595,197.92,197.9,2.5299]
[1735655285413,7.86061595,197.92,197.89,2.53]
[1735655286520,7.86061595,197.92,197.91,2.5298]
[1735655286721,7.86061595,197.92,197.85,30.44109221]
[1735655287422,7.86061595,197.92,197.89,2.5299]
[1735655288624,7.86061595,197.92,197.86,10.64139041]
[1735655288819,7.86061595,197.92,197.88,2.53]
[1735655289220,7.86061595,197.9,197.87,2.5302]
[1735655290420,7.86061595,197.9,197.86,6.84027305]
[1735655290715,7.86061595,197.9,197.87,2.5302]
[1735655292725,7.86061595,197.88,197.86,6.84027305]
[1735655293224,7.86061595,197.88,197.86,9.37057305]
[1735655293620,7.86061595,197.88,197.86,2.5303]
[1735655294426,7.86061595,197.88,197.85,29.89159221]
[1735655294825,7.86061595,197.88,197.85,9.37077305]
[1735655295027,7.86061595,197.88,197.86,2.5304]
[1735655295424,7.86061595,197.88,197.85,6.84027305]
[1735655295620,7.86061595,197.9,197.84,278.20767305]
[1735655296126,11.8229,197.92,197.87,2.5302]
[1735655296326,7.86061595,197.89,197.87,2.5302]
[1735655297426,7.86061595,197.89,197.85,2.5305]
[1735655297628,28.01978946,198.0,197.86,7.86061595]
[1735655297829,7.86061595,197.96,197.88,7.86061595]
[1735655298024,7.86061595,197.94,197.9,2.5298]
[1735655298632,7.86061595,197.92,197.9,2.5298]
[1735655300221,25.0,198.0,197.9,279.22801595]
[1735655300527,32.86061595,198.0,197.92,7.86061595]
[1735655300730,32.86061595,198.0,197.93,3.08]
[1735655300925,32.86061595,198.0,197.98,2.5288]
[1735655301322,32.86061595,198.0,197.99,2.5287]
[1735655301736,32.86061595,198.0,197.93,274.4474]
[1735655301923,7.86061595,197.96,197.93,274.4474]
[1735655302127,7.86061595,197.96,197.93,271.3674]
[1735655302423,7.86061595,197.96,197.95,2.5292]
[1735655303533,7.86061595,197.98,197.96,2.529]
[1735655304432,7.86061595,197.98,197.93,271.3674]
[1735655304732,7.86061595,197.98,197.97,2.529]
[1735655305330,32.86061595,198.0,197.98,2.5288]
[1735655305732,32.86061595,198.0,197.93,271.3674]
[1735655305937,7.86061595,197.98,197.93,271.3674]
[1735655306635,7.86061595,197.98,197.96,2.529]
[1735655307435,7.86061595,197.98,197.97,2.529]
[1735655309033,32.86061595,198.0,197.98,2.5288]
[1735655309833,32.86061595,198.0,197.99,2.5287]
[1735655311243,25.0,198.0,197.99,2.5287]
[1735655314654,3.08,198.28,198.07,2.5276]
[1735655314864,6.0756,198.18,198.09,7.86061595]
[1735655315063,7.86061595,198.19,198.11,7.86061595]
[1735655315256,2.5257,198.24,198.13,7.86061595]
[1735655315461,7.86061595,198.2,198.14,274.4474]
[1735655315644,7.86061595,198.2,198.14,271.3674]
[1735655316054,7.86061595,198.2,198.15,2.5267]
[1735655316353,7.86061595,198.2,198.14,274.4474]
[1735655316552,7.86061595,198.2,198.18,2.5263]
[1735655316749,7.86061595,198.2,198.14,282.30801595]
[1735655316954,7.86061595,198.2,198.15,3.08]
[1735655317247,9.0788,198.27,198.14,279.22801595]
[1735655317453,7.86061595,198.21,198.14,279.22801595]
[1735655317650,7.86061595,198.19,198.12,274.4474]
[1735655317851,7.86061595,198.19,198.12,271.3674]
[1735655318048,7.86061595,198.19,198.12,274.4474]
[1735655318249,6.0756,198.27,198.17,271.3674]
[1735655318447,6.0756,198.27,198.18,10.94061595]
[1735655318448,7.86061595,198.26,198.18,10.94061595]
[1735655318650,7.86061595,198.24,198.18,10.94061595]
[1735655318953,7.86061595,198.24,198.18,7.86061595]
[1735655319154,7.86061595,198.24,198.18,2.5262]
[1735655319357,7.86061595,198.24,198.17,271.3674]
[1735655319558,7.86061595,198.18,198.07,271.3674]
[1735655319865,7.86061595,198.14,198.02,274.14638211]
[1735655320047,7.86061595,198.12,198.04,7.86061595]
[1735655320452,7.86061595,198.12,198.08,2.5276]
[1735655321556,7.86061595,198.12,198.04,279.22801595]
[1735655321957,7.86061595,198.12,198.06,7.86061595]
[1735655322259,17.80716041,198.16,198.04,271.3674]
[1735655322857,17.80716041,198.16,198.05,3.08]
[1735655323265,2.5268,198.14,198.05,3.08]
[1735655323560,15.28056041,198.16,198.04,3.08]
[1735655323561,12.25006041,198.13,198.04,3.08]
[1735655323861,2.5274,198.1,198.03,2.5282]
[1735655324159,12.25006041,198.13,198.01,3.08]
[1735655324357,2.5271,198.12,198.05,2.5279]
[1735655324561,3.0305,198.16,198.06,3.08]
[1735655324953,5.5572,198.16,198.08,2.5276]
[1735655325155,3.0305,198.16,198.08,2.5276]
[1735655325358,3.0305,198.16,198.04,283.61746041]
[1735655325359,12.25006041,198.14,198.04,271.3674]
[1735655325555,15.33006041,198.14,198.04,271.3674]
[1735655326261,15.33006041,198.14,198.08,2.5276]
[1735655327161,2.527,198.13,198.07,2.5277]
[1735655327361,15.33006041,198.14,198.04,274.4474]
[1735655327759,2.5272,198.12,198.05,2.528]
[1735655329066,15.33006041,198.14,198.01,275.17385312]
[1735655330060,15.33006041,198.14,198.02,3.08]
[1735655330264,2.5271,198.13,198.06,2.5278]
[1735655330560,15.33006041,198.14,198.02,3.08]
[1735655330962,12.25006041,198.14,198.02,3.08]
[1735655331758,12.25006041,198.14,198.1,2.5273]
[1735655332164,12.25006041,198.14,198.02,274.4474]
[1735655332364,14.77696041,198.14,198.07,2.5276]
[1735655332663,14.77696041,198.14,198.02,274.4474]
[1735655333163,14.77696041,198.14,198.07,2.5276]
[1735655333367,14.77696041,198.14,198.02,274.4474]
[1735655334160,14.77696041,198.14,198.05,2.5279]
[1735655334359,14.77696041,198.14,198.02,274.4474]
[1735655334360,12.25006041,198.14,198.02,274.4474]
[1735655334560,2.527,198.13,198.02,274.4474]
[1735655334760,12.25006041,198.14,198.02,274.4474]
[1735655335257,12.25006041,198.14,198.02,271.3674]
[1735655335456,15.33006041,198.14,198.03,3.08]
[1735655335674,2.5272,198.11,198.03,3.08]
[1735655336067,2.5272,198.11,198.02,271.3674]
[1735655336460,12.25006041,198.11,198.01,3.80645312]
[1735655336664,12.25006041,198.08,198.01,3.80645312]
[1735655336867,6.2717,198.07,197.98,271.3674]
[1735655337365,6.2717,198.07,198.03,2.5282]
[1735655337565,6.2717,198.07,197.98,271.3674]
[1735655338566,6.2717,198.07,198.04,2.528]
[1735655339267,6.2717,198.07,198.0,2.5285]
[1735655339468,6.2717,198.07,197.98,271.3674]
[1735655341170,8.7995,198.07,198.01,2.5284]
[1735655341369,6.2717,198.07,197.98,271.3674]
[1735655341868,6.2717,198.07,198.04,2.5281]
[1735655342571,2.527,198.13,198.02,10.92408366]
[1735655342771,7.84408366,198.11,198.04,7.84408366]
[1735655342973,7.84408366,198.13,198.04,7.84408366]
[1735655343166,3.08,198.14,198.04,7.84408366]
[1735655343368,7.84408366,198.13,198.04,7.84408366]
[1735655343769,7.84408366,198.13,198.06,2.5278]
[1735655343969,7.84408366,198.13,198.04,7.84408366]
[1735655344268,7.84408366,198.13,198.02,274.4474]
[1735655344269,17.99846749,198.15,198.02,286.69796749]
[1735655344669,15.47176749,198.15,198.02,286.69796749]
[1735655346171,15.35006749,198.17,198.02,286.69796749]
[1735655346867,2.5267,198.16,198.1,2.5273]
[1735655347469,15.35006749,198.17,198.08,3.08]
[1735655347866,15.35006749,198.17,198.08,274.4474]
[1735655348180,15.35006749,198.17,198.1,2.5272]
[1735655348476,15.35006749,198.17,198.08,274.4474]
[1735655349072,17.87656749,198.17,198.08,274.4474]
[1735655349571,15.35006749,198.17,198.12,2.5271]
[1735655350479,15.35006749,198.17,198.08,274.4474]
[1735655350779,15.35006749,198.17,198.13,2.5269]
[1735655351479,15.35006749,198.17,198.14,2.5268]
[1735655351979,15.35006749,198.17,198.08,274.4474]
[1735655352874,3.0724,198.19,198.15,2.5267]
[1735655353876,3.0724,198.19,198.16,2.5265]
[1735655354181,12.25056749,198.2,198.13,3.08]
[1735655354368,12.25056749,198.2,198.14,3.08]
[1735655354570,12.25056749,198.2,198.17,2.5263]
[1735655354773,12.25056749,198.2,198.14,3.08]
[1735655354980,12.25056749,198.2,198.16,2.5265]
[1735655355175,12.25056749,198.2,198.13,3.08]
[1735655355374,12.25056749,198.2,198.12,3.08]
[1735655355678,12.25056749,198.2,198.12,2.527]
[1735655355679,2.5264,198.18,198.12,2.527]
[1735655358987,12.25056749,198.2,198.08,271.3674]
[1735655359279,2.5265,198.17,198.11,2.5272]
[1735655360082,12.25056749,198.17,198.08,271.3674]
[1735655360278,6.003,198.16,198.08,271.3674]
[1735655360482,2.527,198.13,198.08,271.3674]
[1735655360677,3.08,198.13,198.04,271.3674]
[1735655360982,2.5277,198.08,198.03,6.84027305]
[1735655361184,12.25056749,198.11,198.03,6.84027305]
[1735655361378,3.08,198.13,198.01,3.83093069]
[1735655361586,15.33056749,198.13,198.01,3.83093069]
[1735655361781,2.5271,198.12,198.01,3.83093069]
[1735655362283,2.5271,198.12,198.05,2.5279]
[1735655362784,15.33056749,198.13,198.01,3.83093069]
[1735655362977,2.5275,198.09,198.03,2.5282]
[1735655363884,3.08,198.13,198.01,16.08149818]
[1735655364078,15.33056749,198.13,198.01,16.08149818]
[1735655364677,15.33056749,198.13,198.01,287.44889818]
[1735655364885,2.5272,198.11,198.05,2.5279]
[1735655365102,15.33056749,198.13,198.01,287.44889818]
[1735655365684,15.33056749,198.13,198.07,2.5277]
[1735655365983,2.5271,198.12,198.01,287.44889818]
[1735655366186,10.92046585,198.13,198.06,7.84046585]
[1735655366783,7.84046585,198.11,198.04,7.84046585]
[1735655366984,3.08,198.13,198.04,7.84046585]
[1735655367285,7.84046585,198.12,198.09,2.5275]
[1735655369795,7.84046585,198.12,198.04,271.3674]
[1735655369992,7.84046585,198.12,198.04,279.20786585]
[1735655370189,7.84046585,198.1,198.04,279.20786585]
[1735655370587,7.84046585,198.1,198.04,7.84046585]
[1735655371085,7.84046585,198.1,198.02,7.84046585]
[1735655371492,7.84046585,198.08,198.02,279.20786585]
[1735655371786,7.84046585,198.1,198.04,7.84046585]
[1735655373190,7.84046585,198.1,198.02,279.20786585]
[1735655373584,7.84046585,198.1,198.06,2.5278]
[1735655373789,7.84046585,198.1,198.02,279.20786585]
[1735655374496,7.84046585,198.1,198.06,2.5277]
[1735655374694,7.84046585,198.1,198.02,279.20786585]
[1735655374891,7.84046585,198.1,198.07,2.5277]
[1735655376388,2.5271,198.13,198.02,279.20786585]
[1735655376592,7.84046585,198.11,198.08,2.5275]
[1735655380094,7.84046585,198.09,198.02,279.20786585]
[1735655380297,7.84046585,198.09,198.06,2.5278]
[1735655380698,7.84046585,198.1,198.07,2.5277]
[1735655380899,7.84046585,198.1,198.02,279.20786585]
[1735655381597,7.84046585,198.1,198.07,2.5276]
[1735655383801,7.84046585,198.11,198.04,279.20786585]
[1735655384603,7.84046585,198.11,198.06,2.5278]
[1735655384803,7.84046585,198.11,198.04,271.3674]
[1735655385002,7.84046585,198.09,198.04,271.3674]
[1735655385203,7.84046585,198.09,198.04,273.8954]
[1735655385708,2.5274,198.1,198.04,273.8954]
[1735655385900,7.84046585,198.09,198.05,2.528]
[1735655387411,7.84046585,198.09,198.06,2.5277]
[1735655388106,7.84046585,198.07,198.01,275.19833069]
[1735655388404,7.84046585,198.03,198.01,3.83093069]
[1735655389712,7.84046585,198.03,197.99,78.4862646]
[1735655389912,7.84046585,198.01,197.99,78.4862646]
[1735655390407,7.84046585,198.01,197.99,2.5287]
[1735655391109,7.84046585,198.01,197.98,271.3674]
[1735655391508,7.84046585,198.03,197.98,271.3674]
[1735655391907,6.1258,198.06,197.98,279.20786585]
[1735655392109,13.96626585,198.06,198.05,2.528]
[1735655392309,13.96626585,198.06,197.98,279.20786585]
[1735655392814,3.08,198.09,198.0,7.84046585]
[1735655393012,7.84046585,198.07,198.0,7.84046585]
[1735655393912,7.84046585,198.09,198.06,2.5278]
[1735655394912,7.84046585,198.07,198.04,2.528]
[1735655395512,7.84046585,198.07,198.02,271.3674]
[1735655395714,7.84046585,198.07,198.03,2.5282]
[1735655396315,7.84046585,198.05,198.02,271.3674]
[1735655396514,7.84046585,198.05,198.02,273.8957]
[1735655397715,7.84046585,198.05,198.03,2.5282]
[1735655398016,5.6073,198.11,197.97,289.1281389]
[1735655398216,7.84046585,198.06,197.97,282.28786585]
[1735655398509,7.84046585,198.06,198.04,2.528]
[1735655399915,7.84046585,198.06,197.98,283.00030332]
[1735655400317,7.84046585,198.02,197.98,278.20767305]
[1735655401039,7.84046585,198.0,197.99,2.5287]
[1735655401320,5.978,198.05,197.99,2.5287]
[1735655401528,7.84046585,198.0,197.98,2.5289]
[1735655401723,7.84046585,198.0,197.96,6.84027305]
[1735655401915,7.84046585,197.98,197.96,6.84027305]
[1735655402317,7.84046585,198.0,197.98,2.5288]
[1735655402517,7.84046585,198.0,197.96,6.84027305]
[1735655402820,7.84046585,197.98,197.96,6.84027305]
[1735655403021,7.84046585,197.98,197.95,2.5292]
[1735655403225,7.84046585,197.98,197.94,349.86955267]
[1735655403517,7.84046585,198.0,197.94,349.86955267]
[1735655403722,7.84046585,198.02,197.95,7.84046585]
[1735655403922,8.9907,198.05,197.95,7.84046585]
[1735655404122,7.84046585,198.01,197.99,2.5286]
[1735655404326,7.84046585,198.01,197.94,78.50215267]
[1735655404817,7.84046585,197.95,197.94,78.50215267]
[1735655405018,7.84046585,197.95,197.94,6.84027305]
[1735655406124,7.84046585,197.95,197.87,293.84027305]
[1735655406320,7.84046585,197.95,197.88,7.84046585]
[1735655406623,3.08,198.03,197.9,294.84046585]
[1735655406826,7.84046585,197.97,197.91,290.08]
[1735655407020,7.84046585,197.95,197.92,2.5296]
[1735655407232,7.84046585,197.95,197.88,287.0]
[1735655407423,7.84046585,197.93,197.87,3.08]
[1735655407621,7.84046585,197.95,197.87,10.92046585]
[1735655407825,7.84046585,197.95,197.89,7.84046585]
[1735655408024,7.84046585,197.97,197.95,2.5291]
[1735655408923,7.84046585,197.97,197.89,294.84046585]
[1735655409136,3.094,197.98,197.89,294.84046585]
[1735655409137,7.84046585,197.95,197.89,294.84046585]
[1735655409432,7.84046585,197.97,197.89,294.84046585]
[1735655409732,7.84046585,197.97,197.94,2.5293]
[1735655410026,7.84046585,197.95,197.94,2.5293]